Workbook

Sheet CALC (hidden)
A1: Emision | B1: NV42 | E1: Fecha Fin | F1: Dxv | G1: Plazo Cupon | H1: Flujo Cupón | I1: Amort | J1: VP
A2: Contrato | B2: SP16 | E2: 2013-12-19 | F2: =IF(OR(E2-$B$3<=0,E2>$B$4),"",E2-$B$3) -> 
A3: Fecha Valuación | B3: =DIA_VALUACION -> 2015-11-06 | D3: =IF(F3=MIN($F:$F),"VIG","") ->  | E3: 2014-06-19 | G3: =+E3-E2 -> 182 | H3: =IF(F3<=0,0,$B$6/36000*G3*100) -> 3.918055556 | I3: =IF(F3=MAX($F:$F),100,0) -> 0 | J3: =IF(F3="",0,(H3+I3)/(1+$B$7*182/36000)^(F3/182)) -> 0 | L3: =IF(F3="","",IF(F3=MIN($F:$F),1,L2+1)) ->  | M3: =IFERROR(H3/(1+$B$11*F3/36000)+SUM($M$2:$M2),0) -> 0
A4: Vencimiento | B4: =VLOOKUP($B$1,CTOS_CASH,2,0) -> 2042-11-13 | D4: =IF(F4=MIN($F:$F),"VIG","") ->  | E4: 2014-12-18 | G4: =+E4-E3 -> 182 | H4: 3.918055556 | I4: =IF(F4=MAX($F:$F),100,0) -> 0 | J4: 0 | K4: =IFERROR(H4/(1+$B$11*F4/36000),"") ->  | M4: =IFERROR(H4/(1+$B$11*F4/36000)+SUM($M$2:$M3),0) -> 0
A5: Venc. Futuro | B5: =VLOOKUP($B$2,CTOS_FUT,2,0) -> 2016-09-30 | E5: 2015-06-18 | G5: 182 | H5: 3.918055556 | I5: 0 | J5: 0 | M5: =IFERROR(H5/(1+$B$11*F5/36000)+SUM($M$2:$M4),0) -> 0
A6: Tasa Cupón | B6: =VLOOKUP($B$1,CTOS_CASH,3,0) -> 7.75 | D6: VIG | E6: 2015-12-17 | F6: 41 | G6: 182 | H6: 3.918055556 | I6: 0 | J6: 3.888634282 | K6: =IFERROR(H6/(1+$B$11*F6/36000),"") -> 3.90213567 | L6: 1 | M6: =IFERROR(H6/(1+$B$11*F6/36000)+SUM($M$2:$M5),0) -> 3.90213567
A7: Tasa Yield | B7: 6.730247685 | E7: 2016-06-16 | F7: 223 | G7: 182 | H7: 3.918055556 | I7: 0 | J7: 3.760676726 | K7: 3.833001011 | L7: 2 | M7: =IFERROR(H7/(1+$B$11*F7/36000)+SUM($M$2:$M6),0) -> 7.735136681
A8: Precio Sucio | B8: =SUM($J:$J) -> 115.7067862 | E8: 2016-12-15 | F8: 405 | G8: 182 | H8: 3.918055556 | I8: 0 | J8: 3.63692968 | K8: 3.766273441 | L8: 3 | M8: =IFERROR(H8/(1+$B$11*F8/36000)+SUM($M$2:$M7),0) -> 15.40354579
A9: Precio Limpio | B9: =+B8-B10 -> 112.6713696 | E9: 2017-06-15 | F9: 587 | G9: 182 | H9: 3.918055556 | I9: 0 | J9: 3.517254596 | K9: 3.701829399 | L9: 4 | M9: =IFERROR(H9/(1+$B$11*F9/36000)+SUM($M$2:$M8),0) -> 30.74264754
A10: Intereses | B10: =100*$B$6/36000*(VLOOKUP("VIG",$D:$G,4,0)-VLOOKUP("VIG",$D:$G,3,0)) -> 3.035416667 | E10: 2017-12-14 | F10: 769 | G10: 182 | H10: 3.918055556 | I10: 0 | J10: 3.401517484 | K10: 3.639553637 | L10: 5 | M10: =IFERROR(H10/(1+$B$11*F10/36000)+SUM($M$2:$M9),0) -> 61.42301932
A11: Fondeo | B11: =VLOOKUP($B$2,TABLA_FONDEO,3,0) -> 3.58225278 | E11: 2018-06-14 | F11: 951 | G11: 182 | H11: 3.918055556 | I11: 0 | J11: 3.289588762 | K11: 3.579338535 | L11: 6 | M11: =IFERROR(H11/(1+$B$11*F11/36000)+SUM($M$2:$M10),0) -> 122.7858235
A12: Cupones | B12: =VLOOKUP($B$2,CTOS_FUT,3,0) -> 2 | E12: 2018-12-13 | F12: 1133 | G12: 182 | H12: 3.918055556 | I12: 0 | J12: 3.181343114 | K12: 3.521083479 | L12: 7 | M12: =IFERROR(H12/(1+$B$11*F12/36000)+SUM($M$2:$M11),0) -> 245.513392
A13: VP Cupón | B13: =VLOOKUP($B$12,$L:$M,2,0) -> 7.735136681 | E13: 2019-06-13 | F13: 1315 | G13: 182 | H13: 3.918055556 | I13: 0 | J13: 3.076659346 | K13: 3.4646943 | L13: 8 | M13: =IFERROR(H13/(1+$B$11*F13/36000)+SUM($M$2:$M12),0) -> 490.9703949
A14: DXV FUT | B14: =+B5-B3 -> 329 | E14: 2019-12-11 | F14: 1496 | G14: 181 | H14: 3.896527778 | I14: 0 | J14: 2.959615838 | K14: 3.391639785 | L14: 9 | M14: =IFERROR(H14/(1+$B$11*F14/36000)+SUM($M$2:$M13),0) -> 981.8677352
A15: Acarreo | B15: =(B8-B13)*(1+B11*B14/36000) -> 111.5064049 | E15: 2020-06-11 | F15: 1679 | G15: 183 | H15: 3.939583333 | I15: 0 | J15: 2.893322992 | K15: 3.375612093 | L15: 10 | M15: =IFERROR(H15/(1+$B$11*F15/36000)+SUM($M$2:$M14),0) -> 1963.719443
A16: Tasa Yield | B16: =CALCF!B4 -> 6.98821465 | E16: 2020-12-10 | F16: 1861 | G16: 182 | H16: 3.918055556 | I16: 0 | J16: 2.782826422 | K16: 3.305866677 | L16: 11 | M16: =IFERROR(H16/(1+$B$11*F16/36000)+SUM($M$2:$M15),0) -> 3927.36914
E17: 2021-06-10 | F17: 2043 | G17: 182 | H17: 3.918055556 | I17: 0 | J17: 2.691256055 | K17: 3.256111404 | L17: 12 | M17: =IFERROR(H17/(1+$B$11*F17/36000)+SUM($M$2:$M16),0) -> 7854.688525
E18: 2021-12-09 | F18: 2225 | G18: 182 | H18: 3.918055556 | I18: 0 | J18: 2.602698859 | K18: 3.207831617 | L18: 13 | M18: =IFERROR(H18/(1+$B$11*F18/36000)+SUM($M$2:$M17),0) -> 15709.32877
E19: 2022-06-09 | F19: 2407 | G19: 182 | H19: 3.918055556 | I19: 0 | J19: 2.517055685 | K19: 3.160962642 | L19: 14 | M19: =IFERROR(H19/(1+$B$11*F19/36000)+SUM($M$2:$M18),0) -> 31418.61067
E20: 2022-12-08 | F20: 2589 | G20: 182 | H20: 3.918055556 | I20: 0 | J20: 2.434230644 | K20: 3.115443531 | L20: 15 | M20: =IFERROR(H20/(1+$B$11*F20/36000)+SUM($M$2:$M19),0) -> 62837.17582
E21: 2023-06-08 | F21: 2771 | G21: 182 | H21: 3.918055556 | I21: 0 | J21: 2.354131004 | K21: 3.071216796 | L21: 16 | M21: =IFERROR(H21/(1+$B$11*F21/36000)+SUM($M$2:$M20),0) -> 125674.3074
E22: 2023-12-07 | F22: 2953 | G22: 182 | H22: 3.918055556 | I22: 0 | J22: 2.276667085 | K22: 3.028228167 | L22: 17 | M22: =IFERROR(H22/(1+$B$11*F22/36000)+SUM($M$2:$M21),0) -> 251348.5718
E23: 2024-06-06 | F23: 3135 | G23: 182 | H23: 3.918055556 | I23: 0 | J23: 2.201752158 | K23: 2.986426371 | L23: 18 | M23: =IFERROR(H23/(1+$B$11*F23/36000)+SUM($M$2:$M22),0) -> 502697.1019
E24: 2024-12-05 | F24: 3317 | G24: 182 | H24: 3.918055556 | I24: 0 | J24: 2.129302345 | K24: 2.94576293 | L24: 19 | M24: =IFERROR(H24/(1+$B$11*F24/36000)+SUM($M$2:$M23),0) -> 1005394.163
E25: 2025-06-05 | F25: 3499 | G25: 182 | H25: 3.918055556 | I25: 0 | J25: 2.059236531 | K25: 2.906191967 | L25: 20 | M25: =IFERROR(H25/(1+$B$11*F25/36000)+SUM($M$2:$M24),0) -> 2010788.287
E26: 2025-12-04 | F26: 3681 | G26: 182 | H26: 3.918055556 | I26: 0 | J26: 1.99147627 | K26: 2.86767004 | L26: 21 | M26: =IFERROR(H26/(1+$B$11*F26/36000)+SUM($M$2:$M25),0) -> 4021576.535
E27: 2026-06-04 | F27: 3863 | G27: 182 | H27: 3.918055556 | I27: 0 | J27: 1.925945696 | K27: 2.83015598 | L27: 22 | M27: =IFERROR(H27/(1+$B$11*F27/36000)+SUM($M$2:$M26),0) -> 8043153.032
E28: 2026-12-03 | F28: 4045 | G28: 182 | H28: 3.918055556 | I28: 0 | J28: 1.86257144 | K28: 2.793610742 | L28: 23 | M28: =IFERROR(H28/(1+$B$11*F28/36000)+SUM($M$2:$M27),0) -> 16086306.03
E29: 2027-06-03 | F29: 4227 | G29: 182 | H29: 3.918055556 | I29: 0 | J29: 1.801282548 | K29: 2.757997275 | L29: 24 | M29: =IFERROR(H29/(1+$B$11*F29/36000)+SUM($M$2:$M28),0) -> 32172612.02
E30: 2027-12-02 | F30: 4409 | G30: 182 | H30: 3.918055556 | I30: 0 | J30: 1.742010398 | K30: 2.723280393 | L30: 25 | M30: =IFERROR(H30/(1+$B$11*F30/36000)+SUM($M$2:$M29),0) -> 64345224
E31: 2028-06-01 | F31: 4591 | G31: 182 | H31: 3.918055556 | I31: 0 | J31: 1.68468863 | K31: 2.689426658 | L31: 26 | M31: =IFERROR(H31/(1+$B$11*F31/36000)+SUM($M$2:$M30),0) -> 128690448
E32: 2028-11-30 | F32: 4773 | G32: 182 | H32: 3.918055556 | I32: 0 | J32: 1.629253064 | K32: 2.656404276 | L32: 27 | M32: =IFERROR(H32/(1+$B$11*F32/36000)+SUM($M$2:$M31),0) -> 257380895.9
E33: 2029-05-31 | F33: 4955 | G33: 182 | H33: 3.918055556 | I33: 0 | J33: 1.575641635 | K33: 2.624182994 | L33: 28 | M33: =IFERROR(H33/(1+$B$11*F33/36000)+SUM($M$2:$M32),0) -> 514761791.8
E34: 2029-11-29 | F34: =IF(OR(E34-$B$3<=0,E34>$B$4),"",E34-$B$3) -> 5137 | G34: 182 | H34: 3.918055556 | I34: 0 | J34: 1.523794319 | K34: 2.592734011 | L34: 29 | M34: =IFERROR(H34/(1+$B$11*F34/36000)+SUM($M$2:$M33),0) -> 1029523584
E35: 2030-05-30 | F35: 5319 | G35: 182 | H35: =IF(F35<=0,0,$B$6/36000*G35*100) -> 3.918055556 | I35: 0 | J35: =IF(F35="",0,(H35+I35)/(1+$B$7*182/36000)^(F35/182)) -> 1.473653065 | K35: 2.562029889 | L35: =IF(F35="","",IF(F35=MIN($F:$F),1,L34+1)) -> 30 | M35: =IFERROR(H35/(1+$B$11*F35/36000)+SUM($M$2:$M34),0) -> 2059047167
E36: 2030-11-28 | F36: 5501 | G36: 182 | H36: 3.918055556 | I36: 0 | J36: 1.425161736 | K36: =IFERROR(H36/(1+$B$11*F36/36000),"") -> 2.532044475 | L36: 31 | M36: =IFERROR(H36/(1+$B$11*F36/36000)+SUM($M$2:$M35),0) -> 4118094334
E37: 2031-05-29 | F37: 5683 | G37: 182 | H37: 3.918055556 | I37: 0 | J37: 1.37826604 | K37: 2.502752826 | L37: 32 | M37: =IFERROR(H37/(1+$B$11*F37/36000)+SUM($M$2:$M36),0) -> 8236188668
E38: 2031-11-27 | F38: 5865 | G38: 182 | H38: 3.918055556 | I38: 0 | J38: 1.332913471 | K38: 2.474131141 | L38: 33 | M38: =IFERROR(H38/(1+$B$11*F38/36000)+SUM($M$2:$M37),0) -> 1.647237734e+10
E39: 2032-05-27 | F39: 6047 | G39: 182 | H39: 3.918055556 | I39: 0 | J39: 1.289053252 | K39: 2.446156694 | L39: 34 | M39: =IFERROR(H39/(1+$B$11*F39/36000)+SUM($M$2:$M38),0) -> 3.294475467e+10
E40: 2032-11-25 | F40: 6229 | G40: 182 | H40: 3.918055556 | I40: 0 | J40: 1.246636277 | K40: 2.418807775 | L40: 35 | M40: =IFERROR(H40/(1+$B$11*F40/36000)+SUM($M$2:$M39),0) -> 6.588950935e+10
E41: 2033-05-26 | F41: 6411 | G41: 182 | H41: 3.918055556 | I41: 0 | J41: 1.205615055 | K41: 2.392063637 | L41: 36 | M41: =IFERROR(H41/(1+$B$11*F41/36000)+SUM($M$2:$M40),0) -> 1.317790187e+11
E42: 2033-11-24 | F42: 6593 | G42: 182 | H42: 3.918055556 | I42: 0 | J42: 1.165943657 | K42: 2.365904437 | L42: 37 | M42: =IFERROR(H42/(1+$B$11*F42/36000)+SUM($M$2:$M41),0) -> 2.635580374e+11
E43: 2034-05-25 | F43: 6775 | G43: 182 | H43: 3.918055556 | I43: 0 | J43: 1.127577668 | K43: 2.340311193 | L43: 38 | M43: =IFERROR(H43/(1+$B$11*F43/36000)+SUM($M$2:$M42),0) -> 5.271160748e+11
E44: 2034-11-23 | F44: 6957 | G44: 182 | H44: 3.918055556 | I44: 0 | J44: 1.090474132 | K44: 2.315265735 | L44: 39 | M44: =IFERROR(H44/(1+$B$11*F44/36000)+SUM($M$2:$M43),0) -> 1.05423215e+12
E45: 2035-05-24 | F45: 7139 | G45: 182 | H45: 3.918055556 | I45: 0 | J45: 1.054591507 | K45: 2.290750662 | L45: 40 | M45: =IFERROR(H45/(1+$B$11*F45/36000)+SUM($M$2:$M44),0) -> 2.108464299e+12
E46: 2035-11-22 | F46: 7321 | G46: 182 | H46: 3.918055556 | I46: 0 | J46: 1.019889619 | K46: 2.266749303 | L46: 41 | M46: =IFERROR(H46/(1+$B$11*F46/36000)+SUM($M$2:$M45),0) -> 4.216928598e+12
E47: 2036-05-22 | F47: 7503 | G47: 182 | H47: 3.918055556 | I47: 0 | J47: 0.9863296145 | K47: 2.243245678 | L47: 42 | M47: =IFERROR(H47/(1+$B$11*F47/36000)+SUM($M$2:$M46),0) -> 8.433857196e+12
E48: 2036-11-20 | F48: 7685 | G48: 182 | H48: 3.918055556 | I48: 0 | J48: 0.9538739198 | K48: 2.220224462 | L48: 43 | M48: =IFERROR(H48/(1+$B$11*F48/36000)+SUM($M$2:$M47),0) -> 1.686771439e+13
E49: 2037-05-21 | F49: 7867 | G49: 182 | H49: 3.918055556 | I49: 0 | J49: 0.9224861968 | K49: 2.197670955 | L49: 44 | M49: =IFERROR(H49/(1+$B$11*F49/36000)+SUM($M$2:$M48),0) -> 3.373542879e+13
E50: 2037-11-19 | F50: 8049 | G50: 182 | H50: 3.918055556 | I50: 0 | J50: 0.8921313034 | K50: 2.175571047 | L50: 45 | M50: =IFERROR(H50/(1+$B$11*F50/36000)+SUM($M$2:$M49),0) -> 67470857570105
E51: 2038-05-20 | F51: 8231 | G51: 182 | H51: 3.918055556 | I51: 0 | J51: 0.8627752536 | K51: 2.15391119 | L51: 46 | M51: =IFERROR(H51/(1+$B$11*F51/36000)+SUM($M$2:$M50),0) -> 1.349417151e+14
E52: 2038-11-18 | F52: 8413 | G52: 182 | H52: 3.918055556 | I52: 0 | J52: 0.8343851802 | K52: 2.13267837 | L52: 47 | M52: =IFERROR(H52/(1+$B$11*F52/36000)+SUM($M$2:$M51),0) -> 2.698834303e+14
E53: 2039-05-19 | F53: 8595 | G53: 182 | H53: 3.918055556 | I53: 0 | J53: 0.806929297 | K53: 2.111860081 | L53: 48 | M53: =IFERROR(H53/(1+$B$11*F53/36000)+SUM($M$2:$M52),0) -> 5.397668606e+14
E54: 2039-11-17 | F54: 8777 | G54: 182 | H54: 3.918055556 | I54: 0 | J54: 0.7803768641 | K54: 2.091444301 | L54: 49 | M54: =IFERROR(H54/(1+$B$11*F54/36000)+SUM($M$2:$M53),0) -> 1.079533721e+15
E55: 2040-05-17 | F55: 8959 | G55: 182 | H55: 3.918055556 | I55: 0 | J55: 0.754698153 | K55: 2.071419469 | L55: 50 | M55: =IFERROR(H55/(1+$B$11*F55/36000)+SUM($M$2:$M54),0) -> 2.159067442e+15
E56: 2040-11-15 | F56: 9141 | G56: 182 | H56: 3.918055556 | I56: 0 | J56: 0.7298644134 | K56: 2.051774462 | L56: 51 | M56: =IFERROR(H56/(1+$B$11*F56/36000)+SUM($M$2:$M55),0) -> 4318134884486719
E57: 2041-05-16 | F57: 9323 | G57: 182 | H57: 3.918055556 | I57: 0 | J57: 0.705847841 | K57: 2.032498574 | L57: 52 | M57: =IFERROR(H57/(1+$B$11*F57/36000)+SUM($M$2:$M56),0) -> 8636269768973438
E58: 2041-11-14 | F58: 9505 | G58: 182 | H58: 3.918055556 | I58: 0 | J58: 0.6826215466 | K58: 2.013581499 | L58: 53 | M58: =IFERROR(H58/(1+$B$11*F58/36000)+SUM($M$2:$M57),0) -> 1.727253954e+16
E59: 2042-05-15 | F59: 9687 | G59: 182 | H59: 3.918055556 | I59: 0 | J59: 0.6601595256 | K59: 1.99501331 | L59: 54 | M59: =IFERROR(H59/(1+$B$11*F59/36000)+SUM($M$2:$M58),0) -> 3.454507908e+16
E60: 2042-11-13 | F60: 9869 | G60: 182 | H60: 3.918055556 | I60: 100 | J60: 16.93316804 | K60: 1.976784445 | L60: 55 | M60: =IFERROR(H60/(1+$B$11*F60/36000)+SUM($M$2:$M59),0) -> 6.909015815e+16

Sheet CALCF (hidden)
A1: Fecha Valuación | B1: =+CALC!B5 -> 2016-09-30 | E1: Fecha Fin | F1: Dxv | G1: Plazo Cupon
A2: Vencimiento | B2: =+CALC!B4 -> 2042-11-13 | E2: 2013-12-19 | F2: =IF(OR(E2-$B$1<=0,E2>$B$2),"",E2-$B$1) -> 
A3: Tasa Cupón | B3: =+CALC!B6 -> 7.75 | D3: =IF(F3=MIN($F:$F),"VIG","") ->  | E3: 2014-06-19 | G3: =+E3-E2 -> 182
A4: Tasa Yield | B4: 6.98821465 | E4: 2014-12-18 | G4: 182 | H4: =IF(F4<=0,0,IF(F4=MAX($F:$F),$B$3/36000*G4*100+100,$B$3/36000*G4*100)) -> 3.918055556 | I4: =IF(F4="",0,H4/(1+$B$4*182/36000)^(F4/182)) -> 0
A5: Precio Sucio | B5: =SUM(I:I) -> 111.4000015 | E5: 2015-06-18 | G5: 182 | H5: 3.918055556 | I5: 0
B6: =+B5-CALC!B15 -> -0.1064033866 | E6: 2015-12-17 | G6: 182 | H6: 3.918055556 | I6: 0
E7: 2016-06-16 | G7: 182 | H7: 3.918055556 | I7: 0
D8: VIG | E8: 2016-12-15 | F8: 76 | G8: 182 | H8: 3.918055556 | I8: 3.861660323
E9: 2017-06-15 | F9: 258 | G9: 182 | H9: 3.918055556 | I9: 3.729886032
E10: 2017-12-14 | F10: 440 | G10: 182 | H10: 3.918055556 | I10: 3.602608374
E11: 2018-06-14 | F11: 622 | G11: 182 | H11: 3.918055556 | I11: 3.479673905
E12: 2018-12-13 | F12: 804 | G12: 182 | H12: 3.918055556 | I12: 3.36093442
E13: 2019-06-13 | F13: 986 | G13: 182 | H13: 3.918055556 | I13: 3.24624677
E14: 2019-12-11 | F14: 1167 | G14: 181 | H14: 3.896527778 | I14: 3.118839733
E15: 2020-06-11 | F15: 1350 | G15: 183 | H15: 3.939583333 | I15: 3.045118631
E16: 2020-12-10 | F16: 1532 | G16: 182 | H16: 3.918055556 | I16: 2.925135623
E17: 2021-06-10 | F17: 1714 | G17: 182 | H17: 3.918055556 | I17: 2.825319057
E18: 2021-12-09 | F18: 1896 | G18: 182 | H18: 3.918055556 | I18: 2.728908606
E19: 2022-06-09 | F19: 2078 | G19: 182 | H19: 3.918055556 | I19: 2.63578804
E20: 2022-12-08 | F20: 2260 | G20: 182 | H20: 3.918055556 | I20: 2.545845096
E21: 2023-06-08 | F21: 2442 | G21: 182 | H21: 3.918055556 | I21: 2.458971342
E22: 2023-12-07 | F22: 2624 | G22: 182 | H22: 3.918055556 | I22: 2.375062045
E23: 2024-06-06 | F23: 2806 | G23: 182 | H23: 3.918055556 | I23: 2.294016047
E24: 2024-12-05 | F24: 2988 | G24: 182 | H24: 3.918055556 | I24: 2.215735641
E25: 2025-06-05 | F25: 3170 | G25: 182 | H25: 3.918055556 | I25: 2.140126456
E26: 2025-12-04 | F26: 3352 | G26: 182 | H26: 3.918055556 | I26: 2.067097338
E27: 2026-06-04 | F27: 3534 | G27: 182 | H27: 3.918055556 | I27: 1.996560248
E28: 2026-12-03 | F28: 3716 | G28: 182 | H28: 3.918055556 | I28: 1.928430146
E29: 2027-06-03 | F29: 3898 | G29: 182 | H29: 3.918055556 | I29: 1.862624899
E30: 2027-12-02 | F30: 4080 | G30: 182 | H30: 3.918055556 | I30: 1.799065172
E31: 2028-06-01 | F31: 4262 | G31: 182 | H31: 3.918055556 | I31: 1.737674341
E32: 2028-11-30 | F32: 4444 | G32: 182 | H32: 3.918055556 | I32: 1.678378395
E33: 2029-05-31 | F33: 4626 | G33: 182 | H33: 3.918055556 | I33: 1.621105848
E34: 2029-11-29 | F34: =IF(OR(E34-$B$1<=0,E34>$B$2),"",E34-$B$1) -> 4808 | G34: 182 | H34: 3.918055556 | I34: 1.565787655
D35: =IF(F35=MIN($F:$F),"VIG","") ->  | E35: 2030-05-30 | F35: 4990 | G35: =+E35-E34 -> 182 | H35: =IF(F35<=0,0,IF(F35=MAX($F:$F),$B$3/36000*G35*100+100,$B$3/36000*G35*100)) -> 3.918055556 | I35: =IF(F35="",0,H35/(1+$B$4*182/36000)^(F35/182)) -> 1.512357125
E36: 2030-11-28 | F36: 5172 | G36: 182 | H36: 3.918055556 | I36: 1.460749845
E37: 2031-05-29 | F37: 5354 | G37: 182 | H37: 3.918055556 | I37: 1.410903598
E38: 2031-11-27 | F38: 5536 | G38: 182 | H38: 3.918055556 | I38: 1.362758291
E39: 2032-05-27 | F39: 5718 | G39: 182 | H39: 3.918055556 | I39: 1.316255883
E40: 2032-11-25 | F40: 5900 | G40: 182 | H40: 3.918055556 | I40: 1.27134031
E41: 2033-05-26 | F41: 6082 | G41: 182 | H41: 3.918055556 | I41: 1.227957425
E42: 2033-11-24 | F42: 6264 | G42: 182 | H42: 3.918055556 | I42: 1.186054926
E43: 2034-05-25 | F43: 6446 | G43: 182 | H43: 3.918055556 | I43: 1.145582296
E44: 2034-11-23 | F44: 6628 | G44: 182 | H44: 3.918055556 | I44: 1.106490745
E45: 2035-05-24 | F45: 6810 | G45: 182 | H45: 3.918055556 | I45: 1.068733143
E46: 2035-11-22 | F46: 6992 | G46: 182 | H46: 3.918055556 | I46: 1.032263972
E47: 2036-05-22 | F47: 7174 | G47: 182 | H47: 3.918055556 | I47: 0.9970392652
E48: 2036-11-20 | F48: 7356 | G48: 182 | H48: 3.918055556 | I48: 0.9630165572
E49: 2037-05-21 | F49: 7538 | G49: 182 | H49: 3.918055556 | I49: 0.9301548313
E50: 2037-11-19 | F50: 7720 | G50: 182 | H50: 3.918055556 | I50: 0.8984144703
E51: 2038-05-20 | F51: 7902 | G51: 182 | H51: 3.918055556 | I51: 0.8677572091
E52: 2038-11-18 | F52: 8084 | G52: 182 | H52: 3.918055556 | I52: 0.8381460883
E53: 2039-05-19 | F53: 8266 | G53: 182 | H53: 3.918055556 | I53: 0.8095454097
E54: 2039-11-17 | F54: 8448 | G54: 182 | H54: 3.918055556 | I54: 0.7819206931
E55: 2040-05-17 | F55: 8630 | G55: 182 | H55: 3.918055556 | I55: 0.7552386352
E56: 2040-11-15 | F56: 8812 | G56: 182 | H56: 3.918055556 | I56: 0.7294670689
E57: 2041-05-16 | F57: 8994 | G57: 182 | H57: 3.918055556 | I57: 0.7045749248
E58: 2041-11-14 | F58: 9176 | G58: 182 | H58: 3.918055556 | I58: 0.6805321937
E59: 2042-05-15 | F59: 9358 | G59: 182 | H59: 3.918055556 | I59: 0.6573098906
E60: 2042-11-13 | F60: 9540 | G60: 182 | H60: 103.9180556 | I60: 16.83883655

Sheet Información
A1: 1 | B1: 3.06 | E1: Contrato | F1: Vencimiento | G1: Cupón | H1: Contrato | I1: Vencimiento | J1: # Cupones
A2: 2 | B2: 3.06666667 | E2: DC24 | F2: 2024-12-05 | G2: 10 | H2: DC15 | I2: 2015-12-31 | J2: 1
A3: 3 | B3: 3.07333333 | E3: MY31 | F3: 2031-05-29 | G3: 7.75 | H3: MR16 | I3: 2016-03-31 | J3: 1
A4: 4 | B4: 3.08 | E4: DC18 | F4: 2018-12-13 | G4: 8.5 | H4: JN16 | I4: 2016-06-30 | J4: 2
A5: 5 | B5: 3.08666667 | E5: NV42 | F5: 2042-11-13 | G5: 7.75 | H5: SP16 | I5: 2016-09-30 | J5: 2
A6: 6 | B6: 3.09333333
A7: 7 | B7: 3.1
A8: 8 | B8: 3.10142857
A9: 9 | B9: 3.10285714
A10: 10 | B10: 3.10428571
A11: 11 | B11: 3.10571429
A12: 12 | B12: 3.10714286
A13: 13 | B13: 3.10857143
A14: 14 | B14: 3.11
A15: 15 | B15: 3.11
A16: 16 | B16: 3.11
A17: 17 | B17: 3.11
A18: 18 | B18: 3.11
A19: 19 | B19: 3.11
A20: 20 | B20: 3.11
A21: 21 | B21: 3.11
A22: 22 | B22: 3.10857143
A23: 23 | B23: 3.10714286
A24: 24 | B24: 3.10675429
A25: 25 | B25: 3.10780571
A26: 26 | B26: 3.10933714
A27: 27 | B27: 3.11038857
A28: 28 | B28: 3.11
A29: 29 | B29: 3.10984127
A30: 30 | B30: 3.10968254
A31: 31 | B31: 3.11039881
A32: 32 | B32: 3.11255308
A33: 33 | B33: 3.11567835
A34: 34 | B34: 3.11930962
A35: 35 | B35: 3.12297989
A36: 36 | B36: 3.12622316
A37: 37 | B37: 3.12857143
A38: 38 | B38: 3.1299577
A39: 39 | B39: 3.13081997
A40: 40 | B40: 3.13144824
A41: 41 | B41: 3.13213451
A42: 42 | B42: 3.13317178
A43: 43 | B43: 3.13484905
A44: 44 | B44: 3.13746032
A45: 45 | B45: 3.14112059
A46: 46 | B46: 3.14551986
A47: 47 | B47: 3.15030813
A48: 48 | B48: 3.1551344
A49: 49 | B49: 3.15964967
A50: 50 | B50: 3.16350494
A51: 51 | B51: 3.16634921
A52: 52 | B52: 3.16849348
A53: 53 | B53: 3.17044375
A54: 54 | B54: 3.17214102
A55: 55 | B55: 3.17352729
A56: 56 | B56: 3.17454456
A57: 57 | B57: 3.17513483
A58: 58 | B58: 3.1752381
A59: 59 | B59: 3.17397137
A60: 60 | B60: 3.17095563
A61: 61 | B61: 3.1668899
A62: 62 | B62: 3.16247517
A63: 63 | B63: 3.15840944
A64: 64 | B64: 3.15539371
A65: 65 | B65: 3.15412698
A66: 66 | B66: 3.15484325
A67: 67 | B67: 3.15699752
A68: 68 | B68: 3.16012279
A69: 69 | B69: 3.16375406
A70: 70 | B70: 3.16742433
A71: 71 | B71: 3.1706676
A72: 72 | B72: 3.17301587
A73: 73 | B73: 3.17463514
A74: 74 | B74: 3.17604141
A75: 75 | B75: 3.17729168
A76: 76 | B76: 3.17844495
A77: 77 | B77: 3.17955922
A78: 78 | B78: 3.18069349
A79: 79 | B79: 3.18190476
A80: 80 | B80: 3.18231203
A81: 81 | B81: 3.1815683
A82: 82 | B82: 3.18053657
A83: 83 | B83: 3.18007984
A84: 84 | B84: 3.18106211
A85: 85 | B85: 3.18434638
A86: 86 | B86: 3.19079365
A87: 87 | B87: 3.20229992
A88: 88 | B88: 3.21769919
A89: 89 | B89: 3.23326646
A90: 90 | B90: 3.24527473
A91: 91 | B91: 3.25
A92: 92 | B92: 3.24977528
A93: 93 | B93: 3.24955056
A94: 94 | B94: 3.24932584
A95: 95 | B95: 3.24910112
A96: 96 | B96: 3.2488764
A97: 97 | B97: 3.24865169
A98: 98 | B98: 3.24842697
A99: 99 | B99: 3.24820225
A100: 100 | B100: 3.24797753
A101: 101 | B101: 3.24775281
A102: 102 | B102: 3.24752809
A103: 103 | B103: 3.24730337
A104: 104 | B104: 3.24707865
A105: 105 | B105: 3.24685393
A106: 106 | B106: 3.24662921
A107: 107 | B107: 3.24640449
A108: 108 | B108: 3.24647178
A109: 109 | B109: 3.24706306
A110: 110 | B110: 3.24809234
A111: 111 | B111: 3.24947062
A112: 112 | B112: 3.2511119
A113: 113 | B113: 3.25292818
A114: 114 | B114: 3.25483146
A115: 115 | B115: 3.25673474
A116: 116 | B116: 3.25855102
A117: 117 | B117: 3.2601923
A118: 118 | B118: 3.26157058
A119: 119 | B119: 3.26259987
A120: 120 | B120: 3.26319115
A121: 121 | B121: 3.26325843
A122: 122 | B122: 3.26303371
A123: 123 | B123: 3.26280899
A124: 124 | B124: 3.26258427
A125: 125 | B125: 3.26235955
A126: 126 | B126: 3.26213483
A127: 127 | B127: 3.26191011
A128: 128 | B128: 3.26168539
A129: 129 | B129: 3.26146067
A130: 130 | B130: 3.26123596
A131: 131 | B131: 3.26101124
A132: 132 | B132: 3.26078652
A133: 133 | B133: 3.2605618
A134: 134 | B134: 3.26033708
A135: 135 | B135: 3.26011236
A136: 136 | B136: 3.25988764
A137: 137 | B137: 3.25966292
A138: 138 | B138: 3.2594382
A139: 139 | B139: 3.25921348
A140: 140 | B140: 3.25898876
A141: 141 | B141: 3.25876404
A142: 142 | B142: 3.25853933
A143: 143 | B143: 3.25831461
A144: 144 | B144: 3.25808989
A145: 145 | B145: 3.25786517
A146: 146 | B146: 3.25764045
A147: 147 | B147: 3.25741573
A148: 148 | B148: 3.25719101
A149: 149 | B149: 3.25696629
A150: 150 | B150: 3.25730057
A151: 151 | B151: 3.25867385
A152: 152 | B152: 3.26097113
A153: 153 | B153: 3.26407542
A154: 154 | B154: 3.2678687
A155: 155 | B155: 3.27223598
A156: 156 | B156: 3.27706026
A157: 157 | B157: 3.28222354
A158: 158 | B158: 3.28761182
A159: 159 | B159: 3.2931061
A160: 160 | B160: 3.29859038
A161: 161 | B161: 3.30394866
A162: 162 | B162: 3.30906394
A163: 163 | B163: 3.31382022
A164: 164 | B164: 3.31872151
A165: 165 | B165: 3.32424579
A166: 166 | B166: 3.33023107
A167: 167 | B167: 3.33651735
A168: 168 | B168: 3.34294463
A169: 169 | B169: 3.34935191
A170: 170 | B170: 3.35558019
A171: 171 | B171: 3.36146847
A172: 172 | B172: 3.36685575
A173: 173 | B173: 3.37158303
A174: 174 | B174: 3.37548831
A175: 175 | B175: 3.3784126
A176: 176 | B176: 3.38019388
A177: 177 | B177: 3.38067416
A178: 178 | B178: 3.38044944
A179: 179 | B179: 3.38022472
A180: 180 | B180: 3.38
A181: 181 | B181: 3.38005556
A182: 182 | B182: 3.38011111
A183: 183 | B183: 3.38023467
A184: 184 | B184: 3.38049022
A185: 185 | B185: 3.38086778
A186: 186 | B186: 3.38136033
A187: 187 | B187: 3.38195889
A188: 188 | B188: 3.38265544
A189: 189 | B189: 3.383442
A190: 190 | B190: 3.38430856
A191: 191 | B191: 3.38524911
A192: 192 | B192: 3.38625367
A193: 193 | B193: 3.38731422
A194: 194 | B194: 3.38842278
A195: 195 | B195: 3.38957033
A196: 196 | B196: 3.39074989
A197: 197 | B197: 3.39195244
A198: 198 | B198: 3.393168
A199: 199 | B199: 3.39439056
A200: 200 | B200: 3.39561111
... 1800 more rows

Sheet FUTUROS ESPECIFICOS
A1: Contrato | B1: YCash Bid | C1: YFut Bid | D1: Bid | E1: Ask | F1: Y F Ask | G1: YCash Ask | H1: Last | I1: Tasa Fut | J1: Tasa Cash | L1: BID | M1: ASK | N1: LAST | S1: Plazos | T1: DXV | U1: Fondeo
A2: ="DC18 "&Información!$H$2 -> DC18 DC15 | L2: =_xll.rtdValue(L$1,$A2,"EMD","MXN") ->  | M2: =_xll.rtdValue(M$1,$A2,"EMD","MXN") ->  | N2: =_xll.rtdValue(N$1,$A2,"EMD","MXN") ->  | P2: Fecha Valuación | S2: =+Información!H2 -> DC15 | T2: =VLOOKUP(S2,CTOS_FUT,2,0)-'FUTUROS ESPECIFICOS'!$P$4 -> 55 | U2: =VLOOKUP(T2,Información!$A:$B,2,0) -> 3.17352729
A4: ="DC18 "&Información!$H$3 -> DC18 MR16 | L4: =_xll.rtdValue(L$1,$A4,"EMD","MXN") ->  | M4: =_xll.rtdValue(M$1,$A4,"EMD","MXN") ->  | N4: =_xll.rtdValue(N$1,$A4,"EMD","MXN") ->  | P4: =WORKDAY(TODAY(),2,calendario!$A$1:$A$339) -> 2015-11-06 | S4: =+Información!H3 -> MR16 | T4: =VLOOKUP(S4,CTOS_FUT,2,0)-'FUTUROS ESPECIFICOS'!$P$4 -> 146 | U4: =VLOOKUP(T4,Información!$A:$B,2,0) -> 3.25764045
A6: ="DC18 "&Información!$H$4 -> DC18 JN16 | L6: =_xll.rtdValue(L$1,$A6,"EMD","MXN") ->  | M6: =_xll.rtdValue(M$1,$A6,"EMD","MXN") ->  | N6: =_xll.rtdValue(N$1,$A6,"EMD","MXN") ->  | S6: =+Información!H4 -> JN16 | T6: =VLOOKUP(S6,CTOS_FUT,2,0)-'FUTUROS ESPECIFICOS'!$P$4 -> 237 | U6: =VLOOKUP(T6,Información!$A:$B,2,0) -> 3.43964667
A8: ="DC18 "&Información!$H$5 -> DC18 SP16 | L8: =_xll.rtdValue(L$1,$A8,"EMD","MXN") ->  | M8: =_xll.rtdValue(M$1,$A8,"EMD","MXN") ->  | N8: =_xll.rtdValue(N$1,$A8,"EMD","MXN") ->  | S8: =+Información!H5 -> SP16 | T8: =VLOOKUP(S8,CTOS_FUT,2,0)-'FUTUROS ESPECIFICOS'!$P$4 -> 329 | U8: =VLOOKUP(T8,Información!$A:$B,2,0) -> 3.58225278
A12: ="DC24 "&Información!$H$2 -> DC24 DC15 | L12: =_xll.rtdValue(L$1,$A12,"EMD","MXN") ->  | M12: =_xll.rtdValue(M$1,$A12,"EMD","MXN") ->  | N12: =_xll.rtdValue(N$1,$A12,"EMD","MXN") -> 
A14: ="DC24 "&Información!$H$3 -> DC24 MR16 | L14: =_xll.rtdValue(L$1,$A14,"EMD","MXN") ->  | M14: =_xll.rtdValue(M$1,$A14,"EMD","MXN") ->  | N14: =_xll.rtdValue(N$1,$A14,"EMD","MXN") -> 
A16: ="DC24 "&Información!$H$4 -> DC24 JN16 | L16: =_xll.rtdValue(L$1,$A16,"EMD","MXN") ->  | M16: =_xll.rtdValue(M$1,$A16,"EMD","MXN") ->  | N16: =_xll.rtdValue(N$1,$A16,"EMD","MXN") -> 
A18: ="DC24 "&Información!$H$5 -> DC24 SP16 | L18: =_xll.rtdValue(L$1,$A18,"EMD","MXN") ->  | M18: =_xll.rtdValue(M$1,$A18,"EMD","MXN") ->  | N18: =_xll.rtdValue(N$1,$A18,"EMD","MXN") -> 
A22: ="MY31 "&Información!$H$2 -> MY31 DC15 | L22: =_xll.rtdValue(L$1,$A22,"EMD","MXN") ->  | M22: =_xll.rtdValue(M$1,$A22,"EMD","MXN") ->  | N22: =_xll.rtdValue(N$1,$A22,"EMD","MXN") -> 
A24: ="MY31 "&Información!$H$3 -> MY31 MR16 | L24: =_xll.rtdValue(L$1,$A24,"EMD","MXN") ->  | M24: =_xll.rtdValue(M$1,$A24,"EMD","MXN") ->  | N24: =_xll.rtdValue(N$1,$A24,"EMD","MXN") -> 
A26: ="MY31 "&Información!$H$4 -> MY31 JN16 | L26: =_xll.rtdValue(L$1,$A26,"EMD","MXN") ->  | M26: =_xll.rtdValue(M$1,$A26,"EMD","MXN") ->  | N26: =_xll.rtdValue(N$1,$A26,"EMD","MXN") -> 
A28: ="MY31 "&Información!$H$5 -> MY31 SP16 | L28: =_xll.rtdValue(L$1,$A28,"EMD","MXN") ->  | M28: =_xll.rtdValue(M$1,$A28,"EMD","MXN") ->  | N28: =_xll.rtdValue(N$1,$A28,"EMD","MXN") -> 
A32: ="NV42 "&Información!$H$2 -> NV42 DC15 | L32: =_xll.rtdValue(L$1,$A32,"EMD","MXN") ->  | M32: =_xll.rtdValue(M$1,$A32,"EMD","MXN") ->  | N32: =_xll.rtdValue(N$1,$A32,"EMD","MXN") -> 
A34: ="NV42 "&Información!$H$3 -> NV42 MR16 | L34: =_xll.rtdValue(L$1,$A34,"EMD","MXN") ->  | M34: =_xll.rtdValue(M$1,$A34,"EMD","MXN") ->  | N34: =_xll.rtdValue(N$1,$A34,"EMD","MXN") -> 
A36: ="NV42 "&Información!$H$4 -> NV42 JN16 | L36: =_xll.rtdValue(L$1,$A36,"EMD","MXN") ->  | M36: =_xll.rtdValue(M$1,$A36,"EMD","MXN") ->  | N36: =_xll.rtdValue(N$1,$A36,"EMD","MXN") -> 
A38: ="NV42 "&Información!$H$5 -> NV42 SP16 | L38: =_xll.rtdValue(L$1,$A38,"EMD","MXN") ->  | M38: =_xll.rtdValue(M$1,$A38,"EMD","MXN") ->  | N38: =_xll.rtdValue(N$1,$A38,"EMD","MXN") -> 

Sheet calendario (hidden)
A1: 2015-01-01
A2: 2015-02-02
A3: 2015-03-16
A4: 2015-04-02
A5: 2015-04-03
A6: 2015-05-01
A7: 2015-09-16
A8: 2015-11-02
A9: 2015-11-16
A10: 2015-12-25
A11: 2016-01-01
A12: 2016-02-01
A13: 2016-03-21
A14: 2016-03-24
A15: 2016-03-25
A16: 2016-09-16
A17: 2016-11-02
A18: 2016-11-21
A19: 2016-12-12
A20: 2017-02-06
A21: 2017-03-20
A22: 2017-04-13
A23: 2017-04-14
A24: 2017-05-01
A25: 2017-11-02
A26: 2017-11-20
A27: 2017-12-12
A28: 2017-12-25
A29: 2018-01-01
A30: 2018-02-05
A31: 2018-03-19
A32: 2018-03-29
A33: 2018-03-30
A34: 2018-05-01
A35: 2018-11-02
A36: 2018-11-19
A37: 2018-12-12
A38: 2018-12-25
A39: 2019-01-01
A40: 2019-02-04
A41: 2019-03-18
A42: 2019-04-18
A43: 2019-04-19
A44: 2019-05-01
A45: 2019-09-16
A46: 2019-11-18
A47: 2019-12-12
A48: 2019-12-25
A49: 2020-01-01
A50: 2020-02-03
A51: 2020-03-16
A52: 2020-04-09
A53: 2020-04-10
A54: 2020-05-01
A55: 2020-09-16
A56: 2020-11-02
A57: 2020-11-16
A58: 2020-12-25
A59: 2021-01-01
A60: 2021-02-01
A61: 2021-03-15
A62: 2021-04-01
A63: 2021-04-02
A64: 2021-09-16
A65: 2021-11-02
A66: 2021-11-15
A67: 2022-02-07
A68: 2022-03-21
A69: 2022-04-14
A70: 2022-04-15
A71: 2022-09-16
A72: 2022-11-02
A73: 2022-11-21
A74: 2022-12-12
A75: 2023-02-06
A76: 2023-03-20
A77: 2023-04-06
A78: 2023-04-07
A79: 2023-05-01
A80: 2023-11-02
A81: 2023-11-20
A82: 2023-12-12
A83: 2023-12-25
A84: 2024-01-01
A85: 2024-02-05
A86: 2024-03-18
A87: 2024-03-28
A88: 2024-03-29
A89: 2024-05-01
A90: 2024-09-16
A91: 2024-11-18
A92: 2024-12-12
A93: 2024-12-25
A94: 2025-01-01
A95: 2025-02-03
A96: 2025-03-17
A97: 2025-04-17
A98: 2025-04-18
A99: 2025-05-01
A100: 2025-09-16
A101: 2025-11-17
A102: 2025-12-12
A103: 2025-12-25
A104: 2026-01-01
A105: 2026-02-02
A106: 2026-03-16
A107: 2026-04-02
A108: 2026-04-03
A109: 2026-05-01
A110: 2026-09-16
A111: 2026-11-02
A112: 2026-11-16
A113: 2026-12-25
A114: 2027-01-01
A115: 2027-02-01
A116: 2027-03-15
A117: 2027-03-25
A118: 2027-03-26
A119: 2027-09-16
A120: 2027-11-02
A121: 2027-11-15
A122: 2028-02-07
A123: 2028-03-20
A124: 2028-04-13
A125: 2028-04-14
A126: 2028-05-01
A127: 2028-11-02
A128: 2028-11-20
A129: 2028-12-12
A130: 2028-12-25
A131: 2029-01-01
A132: 2029-02-05
A133: 2029-03-19
A134: 2029-03-29
A135: 2029-03-30
A136: 2029-05-01
A137: 2029-11-02
A138: 2029-11-19
A139: 2029-12-12
A140: 2029-12-25
A141: 2030-01-01
A142: 2030-02-04
A143: 2030-03-18
A144: 2030-04-18
A145: 2030-04-19
A146: 2030-05-01
A147: 2030-09-16
A148: 2030-11-18
A149: 2030-12-12
A150: 2030-12-25
A151: 2031-01-01
A152: 2031-02-03
A153: 2031-03-17
A154: 2031-04-10
A155: 2031-04-11
A156: 2031-05-01
A157: 2031-09-16
A158: 2031-11-17
A159: 2031-12-12
A160: 2031-12-25
A161: 2032-01-01
A162: 2032-02-02
A163: 2032-03-15
A164: 2032-03-25
A165: 2032-03-26
A166: 2032-09-16
A167: 2032-11-02
A168: 2032-11-15
A169: 2033-02-07
A170: 2033-03-21
A171: 2033-04-14
A172: 2033-04-15
A173: 2033-09-16
A174: 2033-11-02
A175: 2033-11-21
A176: 2033-12-12
A177: 2034-02-06
A178: 2034-03-20
A179: 2034-04-06
A180: 2034-04-07
A181: 2034-05-01
A182: 2034-11-02
A183: 2034-11-20
A184: 2034-12-12
A185: 2034-12-25
A186: 2035-01-01
A187: 2035-02-05
A188: 2035-03-19
A189: 2035-03-22
A190: 2035-03-23
A191: 2035-05-01
A192: 2035-11-02
A193: 2035-11-19
A194: 2035-12-12
A195: 2035-12-25
A196: 2036-01-01
A197: 2036-02-04
A198: 2036-03-17
A199: 2036-04-10
A200: 2036-04-11
... 139 more rows
